fUST/lending_fUST_20240618
["ID","MTS","AMOUNT","RATE_DAILY","PERIOD"]
[329758752,1718652631789,-1114.19578218,0.0001,2]
[329758753,1718652631800,-421.69587338,0.00010836,2]
[329758754,1718652631809,-1945.55346677,0.00010836,2]
[329758755,1718652631819,-285.87876673,0.00010837,2]
[329758756,1718652631829,-13796.67394152,0.00010838,2]
[329758890,1718652637685,-1004.94697453,0.00010838,2]
[329758891,1718652637696,-3651.14350589,0.00010838,2]
[329758895,1718652637756,-6447.23557806,0.00010838,2]
[329758896,1718652637765,-539.0,0.00010959,2]
[329758897,1718652637775,-1701.1196713,0.000129,2]
[329758898,1718652637785,-278.473681,0.00013699,2]
[329758900,1718652637795,-151.54773924,0.000149,2]
[329758902,1718652637805,-189.28357931,0.00014994,2]
[329758904,1718652637815,-323.65515197,0.00014995,2]
[329758905,1718652637825,-3475.50238806,0.00014996,2]
[329758908,1718652637837,-3882.6803155,0.00014996,2]
[329758910,1718652637846,-7007.23327785,0.00014997,2]
[329758912,1718652637858,-2412.20404845,0.00014997,2]
[329758914,1718652637867,-1999.34837337,0.00014997,2]
[329759233,1718652641057,-4974.21694515,0.00014997,2]
[329759235,1718652641067,-155.01549845,0.00015,2]
[329759237,1718652641077,-1101.25048311,0.00015,2]
[329759239,1718652641087,-18857.25670556,0.00015,2]
[329759241,1718652641099,-14050.14923852,0.00015,2]
[329759243,1718652641109,-34738.77812561,0.00015,2]
[329759245,1718652641119,-455.80425195,0.00015,2]
[329759247,1718652641128,-223.80311676,0.00015,2]
[329759250,1718652641141,-1504.46803443,0.00015,2]
[329759251,1718652641153,-2130.3064068,0.00015,2]
[329759253,1718652641162,-945.74878612,0.00015,2]
[329759255,1718652641171,-1701.11967127,0.00015008,2]
[329759257,1718652641183,-489.77886636,0.000156,2]
[329759259,1718652641192,-63750.69568013,0.000164,2]
[329759500,1718652644439,-4970.30396367,0.000164,2]
[329759647,1718652646217,-21207.23664501,0.000164,2]
[329759648,1718652646308,-525.4495035,0.000164,2]
[329759649,1718652646321,-1409.96,0.000164,2]
[329762695,1718653807591,-154.9690062,9.974e-05,2]
[329762697,1718653807624,-269.95785033,9.974e-05,2]
[329762699,1718653807658,-246.3090309,9.974e-05,2]
[329762701,1718653807686,-129.32520994,9.975e-05,2]
[329762753,1718653831999,-3792.74837424,9.975e-05,2]
[329762754,1718653832013,-4004.42572748,9.975e-05,2]
[329762756,1718653832022,-1800.37100652,9.976e-05,2]
[329762758,1718653832031,-175.3,0.00010959,2]
[329762759,1718653832040,-334.3,0.00010959,2]
[329762761,1718653832049,-278.58,0.00010959,2]
[329762762,1718653832058,-232.15,0.00010959,2]
[329762763,1718653832068,-193.46,0.00010959,2]
[329762766,1718653832077,-161.21,0.00010959,2]
[329762770,1718653832086,-614.19578218,0.00011571,2]
[329762774,1718653832095,-659.22490879,0.00012243,2]
[329762778,1718653832105,-155.0309938,0.00012244,2]
[329762781,1718653832115,-24900.0,0.00012245,2]
[329762783,1718653832124,-1275.83975347,0.00014332,2]
[329762784,1718653832133,-268.616423,0.00014432,2]
[329762785,1718653832142,-492.05119261,0.000149,2]
[329762786,1718653832151,-34331.23833616,0.00015,2]
[329762787,1718653832170,-1156.50805657,0.00015,2]
[329762788,1718653832179,-175.77954376,0.00015,2]
[329762789,1718653832191,-1390.0,0.00015,2]
[329762790,1718653832202,-315.71,0.00015,2]
[329762799,1718653838463,-744.0,0.00015,2]
[329762800,1718653838533,-741.73737459,0.00015,2]
[329762802,1718653838546,-31371.55120726,0.00015,2]
[329762803,1718653838556,-1101.81251075,0.00015,2]
[329762804,1718653838565,-492.05119261,0.0001526,2]
[329762805,1718653838575,-1303.55844644,0.00015417,2]
[329762806,1718653838585,-411.83140751,0.00015426,2]
[329762807,1718653838595,-42267.63838138,0.00015427,2]
[329762808,1718653838604,-1693.94051453,0.00015427,2]
[329762809,1718653838616,-285.52769751,0.00015427,2]
[329762810,1718653838626,-341.18795406,0.00015431,2]
[329762811,1718653838635,-2036.10483651,0.00015431,2]
[329762812,1718653838645,-261.91979643,0.00015431,2]
[329762813,1718653838655,-155.01085076,0.00015433,2]
[329762814,1718653838665,-946.56236145,0.00015433,2]
[329762815,1718653838674,-2413.03400432,0.00015433,2]
[329762816,1718653838683,-160.69914924,0.00015434,2]
[329762817,1718653838692,-489.77886636,0.000156,2]
[329762818,1718653838702,-492.05119261,0.00015619,2]
[329762819,1718653838711,-5270.69012497,0.00015933,2]
[329762820,1718653838720,-492.05119261,0.00015979,2]
[329762821,1718653838730,-492.05119261,0.00016338,2]
[329762822,1718653838740,-146831.10558837,0.000164,2]
[329762823,1718653838750,-292.19306968,0.000164,2]
[329762824,1718653838760,-155.01085076,0.000164,2]
[329762825,1718653838769,-2096.53889493,0.000164,2]
[329762826,1718653838779,-3617.03875472,0.000164,2]
[329762827,1718653838788,-155.01085076,0.000164,2]
[329762828,1718653838798,-155.01085076,0.000164,2]
[329762829,1718653838808,-1636.04419888,0.00016434,7]
[329762830,1718653838818,-2190.08931048,0.00016437,2]
[329762831,1718653838829,-507.14239979,0.00016438,2]
[329762832,1718653838839,-500.0,0.00016438,2]
[329762833,1718653838849,-500.0,0.00016438,2]
[329762834,1718653838858,-500.0,0.00016438,2]
[329762835,1718653838868,-250.0,0.00016438,2]
[329762836,1718653838878,-500.0,0.00016438,2]
[329762837,1718653838887,-500.0,0.00016438,2]
[329762838,1718653838896,-500.0,0.00016438,2]
[329762839,1718653838906,-500.0,0.00016438,2]
[329762840,1718653838915,-503.09226001,0.00016438,2]
[329762841,1718653838924,-390.5733644,0.00016438,2]
[329762842,1718653838935,-288.0,0.00016438,2]
[329762843,1718653838944,-610.94275831,0.00016438,2]
[329762844,1718653838953,-500.0,0.00016438,2]
[329762845,1718653838963,-500.0,0.00016438,2]
[329762846,1718653838972,-382.6505583,0.00016438,2]
[329762847,1718653838981,-500.0,0.00016438,2]
[329762848,1718653839004,-500.0,0.00016438,2]
[329762849,1718653839014,-508.45056929,0.00016438,2]
[329762850,1718653839024,-500.0,0.00016438,2]
[329762851,1718653839034,-504.80687186,0.00016438,2]
[329762852,1718653839045,-500.0,0.00016438,2]
[329762853,1718653839055,-500.0,0.00016438,2]
[329762854,1718653839064,-500.0,0.00016438,2]
[329762855,1718653839075,-500.0,0.00016438,2]
[329762856,1718653839085,-500.0,0.00016438,2]
[329762857,1718653839095,-500.0,0.00016438,2]
[329762858,1718653839106,-500.0,0.00016438,2]
[329762859,1718653839116,-500.0,0.00016438,2]
[329762860,1718653839127,-500.0,0.00016438,2]
[329762861,1718653839137,-282.83811434,0.00016438,2]
[329762862,1718653839147,-156.27991408,0.00016438,2]
[329762863,1718653839157,-504.25947391,0.00016438,2]
[329762864,1718653839168,-500.0,0.00016438,2]
[329762865,1718653839178,-500.0,0.00016438,2]
[329762866,1718653839188,-500.0,0.00016438,2]
[329762867,1718653839198,-500.0,0.00016438,2]
[329762868,1718653839208,-526.85006642,0.00016438,2]
[329762869,1718653839217,-500.0,0.00016438,2]
[329762870,1718653839227,-500.0,0.00016438,2]
[329762871,1718653839237,-443.51637522,0.00016438,2]
[329762872,1718653839248,-436.18131857,0.00016438,2]
[329762873,1718653839258,-504.20698009,0.00016438,2]
[329762874,1718653839267,-500.0,0.00016438,2]
[329762875,1718653839277,-500.0,0.00016438,2]
[329762876,1718653839287,-500.0,0.00016438,2]
[329762877,1718653839297,-500.0,0.00016438,2]
[329762878,1718653839308,-500.0,0.00016438,2]
[329762879,1718653839318,-500.0,0.00016438,2]
[329762880,1718653839328,-500.0,0.00016438,2]
[329762881,1718653839338,-500.0,0.00016438,2]
[329762882,1718653839347,-500.0,0.00016438,2]
[329762883,1718653839357,-500.0,0.00016438,2]
[329762884,1718653839367,-500.0,0.00016438,2]
[329762885,1718653839376,-500.0,0.00016438,2]
[329762886,1718653839386,-151.0,0.00016438,2]
[329762887,1718653839398,-151.0,0.00016438,2]
[329762888,1718653839408,-500.0,0.00016438,2]
[329762889,1718653839417,-500.0,0.00016438,2]
[329762890,1718653839427,-500.0,0.00016438,2]
[329762891,1718653839436,-500.0,0.00016438,2]
[329762892,1718653839446,-500.0,0.00016438,2]
[329762893,1718653839456,-500.0,0.00016438,2]
[329762894,1718653839466,-500.0,0.00016438,2]
[329762895,1718653839475,-500.0,0.00016438,2]
[329762896,1718653839485,-464.32304756,0.00016438,2]
[329762897,1718653839497,-500.0,0.00016438,2]
[329762898,1718653839506,-500.0,0.00016438,2]
[329762899,1718653839516,-500.0,0.00016438,2]
[329762900,1718653839526,-500.0,0.00016438,2]
[329762901,1718653839541,-500.0,0.00016438,2]
[329762902,1718653839550,-500.0,0.00016438,2]
[329762903,1718653839560,-502.18712384,0.00016438,2]
[329762904,1718653839571,-500.0,0.00016438,2]
[329762905,1718653839581,-500.0,0.00016438,2]
[329762906,1718653839590,-549.00505673,0.00016438,2]
[329762907,1718653839600,-500.0,0.00016438,2]
[329762908,1718653839614,-475.80295938,0.00016438,2]
[329762909,1718653839625,-500.0,0.00016438,2]
[329762910,1718653839635,-500.0,0.00016438,2]
[329762911,1718653839644,-500.0,0.00016438,2]
[329762912,1718653839655,-500.0,0.00016438,2]
[329762913,1718653839664,-500.0,0.00016438,2]
[329762914,1718653839674,-151.0,0.00016438,2]
[329762915,1718653839683,-151.0,0.00016438,2]
[329762916,1718653839694,-500.0,0.00016438,2]
[329762917,1718653839704,-151.0,0.00016438,2]
[329762918,1718653839714,-151.0,0.00016438,2]
[329762919,1718653839723,-500.0,0.00016438,2]
[329762920,1718653839732,-502.04895759,0.00016438,2]
[329762921,1718653839744,-246.572714,0.00016438,2]
[329762922,1718653839754,-500.0,0.00016438,2]
[329762923,1718653839764,-623.84762386,0.00016438,2]
[329762924,1718653839774,-500.0,0.00016438,2]
[329762925,1718653839785,-500.0,0.00016438,2]
[329762926,1718653839795,-500.0,0.00016438,2]
[329762927,1718653839804,-183.63434371,0.00016438,2]
[329762928,1718653839814,-524.59551647,0.00016438,2]
[329762929,1718653839824,-500.0,0.00016438,2]
[329762930,1718653839833,-151.0,0.00016438,2]
[329762931,1718653839842,-151.0,0.00016438,2]
[329762932,1718653839852,-500.0,0.00016438,2]
[329762933,1718653839861,-500.0,0.00016438,2]
[329762934,1718653839871,-500.0,0.00016438,2]
[329762935,1718653839880,-165.60595172,0.00016438,2]
[329762936,1718653839890,-500.92770484,0.00016438,2]
[329762937,1718653839900,-166.698366,0.00016438,2]
[329762938,1718653839910,-500.0,0.00016438,2]
[329762939,1718653839919,-500.0,0.00016438,2]
[329762940,1718653839929,-500.0,0.00016438,2]
[329762941,1718653839938,-500.0,0.00016438,2]
[329762942,1718653839948,-500.0,0.00016438,2]
[329762943,1718653839961,-500.0,0.00016438,2]
[329762944,1718653839970,-500.0,0.00016438,2]
[329762945,1718653839980,-500.0,0.00016438,2]
[329762946,1718653839989,-500.0,0.00016438,2]
[329762947,1718653840001,-602.78809942,0.00016438,2]
[329762948,1718653840011,-500.0,0.00016438,2]
[329762949,1718653840020,-577.66149049,0.00016438,2]
[329762950,1718653840030,-500.0,0.00016438,2]
[329762951,1718653840040,-500.0,0.00016438,2]
[329762952,1718653840049,-500.0,0.00016438,2]
[329762953,1718653840059,-500.0,0.00016438,2]
[329762954,1718653840069,-500.0,0.00016438,2]
[329762955,1718653840078,-500.0,0.00016438,2]
[329762956,1718653840088,-500.0,0.00016438,2]
[329762957,1718653840097,-356.46094243,0.00016438,2]
[329762958,1718653840106,-500.0,0.00016438,2]
[329762959,1718653840116,-500.0,0.00016438,2]
[329762960,1718653840126,-500.0,0.00016438,2]
[329762961,1718653840135,-500.0,0.00016438,2]
[329762962,1718653840144,-503.74567156,0.00016438,2]
[329762963,1718653840154,-500.0,0.00016438,2]
[329762964,1718653840164,-500.0,0.00016438,2]
[329762965,1718653840173,-500.0,0.00016438,2]
[329762966,1718653840183,-500.0,0.00016438,2]
[329762967,1718653840192,-404.91930414,0.00016438,2]
[329762970,1718653840818,-95.08069586,0.00016438,2]
[329762971,1718653840828,-500.0,0.00016438,2]
[329762972,1718653840837,-500.0,0.00016438,2]
[329762973,1718653840847,-191.747187,0.00016438,2]
[329762974,1718653840856,-500.0,0.00016438,2]
[329762975,1718653840866,-191.747187,0.00016438,2]
[329762976,1718653840875,-500.0,0.00016438,2]
[329762977,1718653840884,-500.0,0.00016438,2]
[329762978,1718653840893,-500.0,0.00016438,2]
[329762979,1718653840902,-300.11636583,0.00016438,2]
[329763014,1718653843021,-268.6164242,0.00015797,2]
[329763015,1718653843031,-225.59366627,0.00016438,2]
[329763016,1718653843041,-500.0,0.00016438,2]
[329763017,1718653843050,-500.0,0.00016438,2]
[329763018,1718653843059,-151.0,0.00016438,2]
[329763020,1718653843068,-500.0,0.00016438,2]
[329763022,1718653843078,-3636.12,0.00016438,2]
[329763024,1718653843088,-500.0,0.00016438,2]
[329763025,1718653843097,-500.0,0.00016438,2]
[329763027,1718653843107,-500.0,0.00016438,2]
[329763029,1718653843117,-150.47894253,0.00016438,2]
[329763031,1718653843128,-349.52105747,0.00016438,2]
[329763033,1718653843138,-500.0,0.00016438,2]
[329763034,1718653843147,-258.94767295,0.00016438,2]
[329763035,1718653843156,-500.0,0.00016438,2]
[329763037,1718653843166,-500.0,0.00016438,2]
[329763039,1718653843175,-500.0,0.00016438,2]
[329763041,1718653843184,-472.95293861,0.00016438,2]
[329763042,1718653843294,-27.04706139,0.00016438,2]
[329763043,1718653843304,-500.0,0.00016438,2]
[329763044,1718653843314,-500.0,0.00016438,2]
[329763045,1718653843323,-142.7280072,0.00016438,2]
[329763046,1718653843335,-357.2719928,0.00016438,2]
[329763047,1718653843344,-500.0,0.00016438,2]
[329763048,1718653843354,-500.0,0.00016438,2]
[329763049,1718653843363,-500.0,0.00016438,2]
[329763050,1718653843372,-500.0,0.00016438,2]
[329763051,1718653843382,-87.85820573,0.00016438,2]
[329763052,1718653843394,-412.14179427,0.00016438,2]
[329763053,1718653843404,-500.0,0.00016438,2]
[329763054,1718653843413,-381.58076112,0.00016438,2]
[329763055,1718653843425,-118.41923888,0.00016438,2]
[329763056,1718653843434,-500.0,0.00016438,2]
[329763057,1718653843443,-500.0,0.00016438,2]
[329763058,1718653843452,-500.0,0.00016438,2]
[329763059,1718653843461,-500.0,0.00016438,2]
[329763060,1718653843469,-500.0,0.00016438,2]
[329763061,1718653843479,-325.26702993,0.00016438,2]
[329763062,1718653843491,-174.73297007,0.00016438,2]
[329763063,1718653843503,-500.39422374,0.00016438,2]
[329763064,1718653843515,-500.0,0.00016438,2]
[329763065,1718653843525,-500.0,0.00016438,2]
[329763066,1718653843650,-500.0,0.00016438,2]
[329763067,1718653843661,-317.37280619,0.00016438,2]
[329763206,1718654986194,-410.92446491,9.975e-05,2]
[329763207,1718654986241,-410.92446491,9.975e-05,2]
[329763209,1718655011226,-378.39840786,9.975e-05,2]
[329763210,1718655011255,-48.96303565,9.976e-05,2]
[329763851,1718655038226,-7926.49931166,0.00010958,2]
[329763852,1718655038236,-400.0,0.00010959,2]
[329763853,1718655038245,-333.33,0.00010959,2]
[329763854,1718655038255,-277.78,0.00010959,2]
[329763855,1718655038265,-231.48,0.00010959,2]
[329763856,1718655038275,-192.9,0.00010959,2]
[329763858,1718655038284,-160.75,0.00010959,2]
[329763860,1718655038294,-803.77,0.00010959,2]
[329763862,1718655038303,-1000.20611473,0.0001275,2]
[329763864,1718655038312,-24900.0,0.00012751,2]
[329763866,1718655038322,-1383.4591196,0.00014798,2]
[329763868,1718655038332,-626.7234966,0.00014898,2]
[329763871,1718655038342,-30719.7106185,0.00014997,2]
[329763874,1718655038352,-7972.28293987,0.00014998,2]
[329763877,1718655038361,-257.72394334,0.00014998,2]
[329763880,1718655038371,-216.23913996,0.00014999,2]
[329763883,1718655038381,-156.52134709,0.00014999,2]
[329763886,1718655038390,-35469.40981795,0.00015,2]
[329763888,1718655038400,-34738.77812561,0.00015,2]
[329763890,1718655038411,-1101.25048311,0.00015,2]
[329763892,1718655038421,-1303.55844644,0.00015,2]
[329763894,1718655038431,-299.57781245,0.00015,2]
[329763896,1718655038442,-946.56236145,0.00015,2]
[329763898,1718655038451,-2814.56742105,0.00015,2]
[329763900,1718655038460,-626.72349659,0.00015326,2]
[329763902,1718655038469,-488.62542705,0.000156,2]
[329763904,1718655038479,-626.72349659,0.00015755,2]
[329763906,1718655038488,-1000.0,0.00016,8]
[329763908,1718655038497,-500.0,0.00016,2]
[329763910,1718655038507,-626.72349659,0.00016183,2]
[329763912,1718655038516,-500.0,0.00016438,2]
[329763914,1718655038526,-500.0,0.00016438,2]
[329763915,1718655038536,-500.0,0.00016438,2]
[329763918,1718655038546,-500.0,0.00016438,2]
[329763919,1718655038556,-500.0,0.00016438,2]
[329763921,1718655038566,-506.90837901,0.00016438,2]
[329763923,1718655038576,-318.32601055,0.00016438,2]
[329763925,1718655038586,-500.0,0.00016438,2]
[329763927,1718655038595,-489.74409388,0.00016438,2]
[329763929,1718655038605,-500.0,0.00016438,2]
[329763930,1718655038615,-500.0,0.00016438,2]
[329763931,1718655038624,-500.0,0.00016438,2]
[329763932,1718655038634,-500.0,0.00016438,2]
[329763933,1718655038643,-500.0,0.00016438,2]
[329763934,1718655038653,-292.15791119,0.00016438,2]
[329763935,1718655038662,-205.48948272,0.00016438,2]
[329763936,1718655038672,-500.0,0.00016438,2]
[329763937,1718655038682,-500.0,0.00016438,2]
[329763938,1718655038691,-500.0,0.00016438,2]
[329763939,1718655038700,-500.0,0.00016438,2]
[329763940,1718655038710,-500.0,0.00016438,2]
[329763941,1718655038719,-267.10002343,0.00016438,2]
[329763942,1718655038729,-500.0,0.00016438,2]
[329763943,1718655038738,-500.0,0.00016438,2]
[329763944,1718655038747,-500.0,0.00016438,2]
[329763945,1718655038758,-500.0,0.00016438,2]
[329763946,1718655038767,-500.0,0.00016438,2]
[329763947,1718655038776,-500.0,0.00016438,2]
[329763948,1718655038786,-296.819083,0.00016438,2]
[329763949,1718655038795,-500.0,0.00016438,2]
[329763950,1718655038805,-500.0,0.00016438,2]
[329763951,1718655038815,-500.0,0.00016438,2]
[329763952,1718655038824,-500.0,0.00016438,2]
[329763953,1718655038833,-500.0,0.00016438,2]
[329763954,1718655038842,-500.0,0.00016438,2]
[329763955,1718655038851,-500.0,0.00016438,2]
[329763956,1718655038860,-500.0,0.00016438,2]
[329763957,1718655038869,-500.0,0.00016438,2]
[329763958,1718655038878,-500.0,0.00016438,2]
[329763959,1718655038887,-500.0,0.00016438,2]
[329763960,1718655038896,-500.0,0.00016438,2]
[329763961,1718655038905,-500.0,0.00016438,2]
[329763962,1718655038921,-500.0,0.00016438,2]
[329763963,1718655038930,-500.0,0.00016438,2]
[329763964,1718655038939,-500.0,0.00016438,2]
[329763965,1718655038948,-500.0,0.00016438,2]
[329763966,1718655038962,-500.0,0.00016438,2]
[329763967,1718655038971,-500.0,0.00016438,2]
[329763968,1718655038980,-500.0,0.00016438,2]
[329763969,1718655038989,-500.0,0.00016438,2]
[329763970,1718655038998,-500.0,0.00016438,2]
[329763971,1718655039008,-500.0,0.00016438,2]
[329763972,1718655039018,-500.0,0.00016438,2]
[329763973,1718655039028,-500.0,0.00016438,2]
[329763974,1718655039037,-500.0,0.00016438,2]
[329763975,1718655039047,-504.6858302,0.00016438,2]
[329763976,1718655039057,-500.0,0.00016438,2]
[329763977,1718655039066,-500.0,0.00016438,2]
[329763978,1718655039076,-500.0,0.00016438,2]
[329763979,1718655039086,-500.0,0.00016438,2]
[329763980,1718655039096,-500.0,0.00016438,2]
[329763981,1718655039105,-500.0,0.00016438,2]
[329763982,1718655039115,-191.29156839,0.00016438,2]
[329763983,1718655039125,-500.0,0.00016438,2]
[329763984,1718655039135,-624.66220969,0.00016438,2]
[329763985,1718655039144,-500.0,0.00016438,2]
[329763986,1718655039154,-500.0,0.00016438,2]
[329763992,1718655039295,-500.0,0.00016438,2]
[329763994,1718655039306,-500.0,0.00016438,2]
[329763995,1718655039316,-500.0,0.00016438,2]
[329763997,1718655039326,-500.0,0.00016438,2]
[329763999,1718655039337,-498.293656,0.00016438,2]
[329764001,1718655039351,-1.706344,0.00016438,2]
[329764003,1718655039360,-500.0,0.00016438,2]
[329764005,1718655039370,-505.55114002,0.00016438,2]
[329764007,1718655039380,-361.51694255,0.00016438,2]
[329764009,1718655039393,-138.48305745,0.00016438,2]
[329764011,1718655039403,-131.91880183,0.00016438,2]
[329764214,1718655041410,-368.08119817,0.00016438,2]
[329764216,1718655041420,-500.0,0.00016438,2]
[329764218,1718655041430,-500.0,0.00016438,2]
[329764220,1718655041440,-500.0,0.00016438,2]
[329764222,1718655041449,-500.0,0.00016438,2]
[329764224,1718655041459,-500.0,0.00016438,2]
[329764226,1718655041468,-500.0,0.00016438,2]
[329764228,1718655041478,-500.0,0.00016438,2]
[329764230,1718655041488,-500.0,0.00016438,2]
[329764232,1718655041498,-500.0,0.00016438,2]
[329764234,1718655041508,-500.0,0.00016438,2]
[329764236,1718655041518,-500.0,0.00016438,2]
[329764238,1718655041528,-500.0,0.00016438,2]
[329764240,1718655041539,-500.0,0.00016438,2]
[329764242,1718655041549,-500.0,0.00016438,2]
[329764244,1718655041558,-500.0,0.00016438,2]
[329764246,1718655041568,-500.0,0.00016438,2]
[329764248,1718655041578,-500.0,0.00016438,2]
[329764250,1718655041587,-500.0,0.00016438,2]
[329764252,1718655041597,-500.0,0.00016438,2]
[329764254,1718655041607,-500.0,0.00016438,2]
[329764256,1718655041616,-500.0,0.00016438,2]
[329764257,1718655041626,-500.0,0.00016438,2]
[329764259,1718655041636,-500.0,0.00016438,2]
[329764261,1718655041646,-643.93586001,0.00016438,2]
[329764263,1718655041656,-500.55311591,0.00016438,2]
[329764265,1718655041666,-500.0,0.00016438,2]
[329764267,1718655041675,-500.0,0.00016438,2]
[329764269,1718655041685,-500.0,0.00016438,2]
[329764271,1718655041694,-500.0,0.00016438,2]
[329764273,1718655041703,-500.0,0.00016438,2]
[329764275,1718655041712,-500.0,0.00016438,2]
[329764277,1718655041722,-500.0,0.00016438,2]
[329764279,1718655041731,-500.0,0.00016438,2]
[329764281,1718655041741,-500.0,0.00016438,2]
[329764283,1718655041751,-500.0,0.00016438,2]
[329764285,1718655041760,-500.0,0.00016438,2]
[329764287,1718655041770,-500.0,0.00016438,2]
[329764289,1718655041779,-613.62376645,0.00016438,2]
[329764290,1718655041788,-500.0,0.00016438,2]
[329764291,1718655041797,-500.0,0.00016438,2]
[329764294,1718655041807,-500.0,0.00016438,2]
[329764296,1718655041819,-500.0,0.00016438,2]
[329764297,1718655041828,-500.0,0.00016438,2]
[329764299,1718655041838,-1221.27,0.00016438,2]
[329764301,1718655041848,-500.0,0.00016438,2]
[329764303,1718655041857,-500.0,0.00016438,2]
[329764305,1718655041867,-500.0,0.00016438,2]
[329764308,1718655041876,-296.04797721,0.00016438,2]
[329764310,1718655041886,-1269.88,0.00016438,2]
[329764311,1718655041895,-500.0,0.00016438,2]
[329764313,1718655041904,-500.0,0.00016438,2]
[329764315,1718655041916,-500.0,0.00016438,2]
[329764317,1718655041929,-500.0,0.00016438,2]
[329764319,1718655041938,-500.0,0.00016438,2]
[329764322,1718655041948,-500.0,0.00016438,2]
[329764323,1718655041958,-500.0,0.00016438,2]
[329764325,1718655041968,-259.79298851,0.00016438,2]
[329764327,1718655041977,-500.0,0.00016438,2]
[329764329,1718655041987,-500.0,0.00016438,2]
[329764331,1718655041997,-500.0,0.00016438,2]
[329764333,1718655042008,-540.67,0.00016438,2]
[329764335,1718655042018,-500.0,0.00016438,2]
[329764337,1718655042028,-500.0,0.00016438,2]
[329764339,1718655042037,-500.0,0.00016438,2]
[329764341,1718655042047,-500.0,0.00016438,2]
[329764343,1718655042057,-500.0,0.00016438,2]
[329764345,1718655042066,-500.0,0.00016438,2]
[329764347,1718655042075,-500.0,0.00016438,2]
[329764349,1718655042084,-500.0,0.00016438,2]
[329764351,1718655042094,-500.0,0.00016438,2]
[329764353,1718655042103,-500.0,0.00016438,2]
[329764355,1718655042114,-500.0,0.00016438,2]
[329764357,1718655042123,-500.0,0.00016438,2]
[329764358,1718655042203,-1342.9,0.00016438,2]
[329764360,1718655042215,-500.0,0.00016438,2]
[329764362,1718655042225,-500.0,0.00016438,2]
[329764365,1718655042235,-505.76753032,0.00016438,2]
[329764366,1718655042244,-500.0,0.00016438,2]
[329764368,1718655042253,-518.96,0.00016438,2]
[329764370,1718655042263,-500.0,0.00016438,2]
[329764372,1718655042272,-919.76,0.00016438,2]
[329764374,1718655042281,-1259.44,0.00016438,2]
[329764376,1718655042290,-500.0,0.00016438,2]
[329764378,1718655042300,-500.0,0.00016438,2]
[329764380,1718655042309,-500.0,0.00016438,2]
[329764382,1718655042319,-500.0,0.00016438,2]
[329764384,1718655042328,-500.0,0.00016438,2]
[329764386,1718655042337,-500.0,0.00016438,2]
[329764388,1718655042348,-500.0,0.00016438,2]
[329764390,1718655042358,-500.0,0.00016438,2]
[329764392,1718655042368,-500.0,0.00016438,2]
[329764394,1718655042377,-500.0,0.00016438,2]
[329764396,1718655042386,-500.0,0.00016438,2]
[329764398,1718655042396,-500.0,0.00016438,2]
[329764400,1718655042406,-250.0,0.00016438,2]
[329764402,1718655042415,-500.0,0.00016438,2]
[329764404,1718655042424,-500.0,0.00016438,2]
[329764406,1718655042434,-500.0,0.00016438,2]
[329764408,1718655042443,-581.40954012,0.00016438,2]
[329764410,1718655042452,-2696.63,0.00016438,2]
[329764411,1718655042461,-500.0,0.00016438,2]
[329764412,1718655042471,-500.0,0.00016438,2]
[329764413,1718655042480,-500.0,0.00016438,2]